bitfinex/quotes_BTCUSD_20260315
["timestamp","ask_amount","ask_price","bid_price","bid_amount"]
[1773614412200,0.06913334,72325.0,72302.0,0.06915438]
[1773614412401,0.0014,72324.0,72320.0,2.15]
[1773614412785,0.0014,72323.0,72320.0,2.15]
[1773614413208,0.0014,72325.0,72320.0,2.15]
[1773614413527,0.07053143,72326.0,72320.0,2.15]
[1773614413674,0.07053143,72326.0,72320.0,2.14986018]
[1773614414111,0.06913143,72326.0,72320.0,2.14986018]
[1773614414965,0.07013143,72326.0,72320.0,2.14986018]
[1773614415435,0.0002,72327.0,72320.0,2.21899694]
[1773614415665,0.06933062,72327.0,72320.0,1.86796604]
[1773614415856,0.06933062,72327.0,72320.0,1.84000896]
[1773614416194,0.06933062,72327.0,72320.0,1.90914584]
[1773614416599,0.06933054,72327.0,72320.0,1.84000896]
[1773614416816,0.0002,72327.0,72320.0,1.90914577]
[1773614417855,0.06933083,72327.0,72320.0,1.84000896]
[1773614417992,0.0002,72327.0,72320.0,1.90914605]
[1773614418206,0.06933075,72327.0,72320.0,1.84000896]
[1773614418444,0.0002,72327.0,72320.0,1.90914573]
[1773614419069,0.0232751,72334.0,72321.0,0.11517639]
[1773614419679,0.09239919,72334.0,72323.0,0.11517639]
[1773614419877,0.09239919,72334.0,72323.0,0.11528269]
[1773614420437,0.52138929,72366.0,72323.0,0.11528269]
[1773614420438,0.09960651,72393.0,72354.0,0.10227012]
[1773614420636,0.11677695,72400.0,72365.0,0.58086669]
[1773614420637,0.06907603,72384.0,72365.0,0.58086669]
[1773614420784,0.0004681,72385.0,72366.0,0.0014]
[1773614420972,0.00013,72392.0,72369.0,0.10227012]
[1773614421187,0.06905886,72402.0,72386.0,0.580867]
[1773614421386,0.06905886,72402.0,72385.0,0.0014]
[1773614421587,0.06905886,72402.0,72382.0,0.0014]
[1773614421588,0.0014,72401.0,72382.0,0.0014]
[1773614421804,0.07081355,72402.0,72383.0,0.13602159]
[1773614422009,0.10667651,72401.0,72384.0,0.13602159]
[1773614422215,0.06941355,72402.0,72382.0,0.0014]
[1773614422844,0.00035469,72402.0,72383.0,0.13572171]
[1773614423046,0.06941417,72402.0,72383.0,0.17501993]
[1773614423271,0.06941417,72402.0,72382.0,0.07047699]
[1773614423272,0.10667651,72414.0,72382.0,0.0704773]
[1773614423556,0.10678286,72414.0,72387.0,0.580867]
[1773614423700,0.10678286,72414.0,72389.0,0.580867]
[1773614423898,0.10807651,72413.0,72390.0,0.0014]
[1773614424705,0.0014,72413.0,72391.0,0.15981584]
[1773614425102,0.06904932,72412.0,72391.0,0.15981584]
[1773614425306,0.06904932,72412.0,72391.0,0.22888493]
[1773614425525,0.06904932,72412.0,72391.0,0.2288844]
[1773614425959,0.06904932,72412.0,72391.0,0.15981584]
[1773614426129,0.06904932,72412.0,72392.0,0.0690684]
[1773614426329,0.06915567,72414.0,72393.0,0.10594294]
[1773614426330,0.0691543,72414.0,72393.0,0.10594294]
[1773614426536,0.0691543,72414.0,72401.0,0.580867]
[1773614426726,0.0691543,72414.0,72402.0,0.0014]
[1773614426937,0.0691543,72414.0,72392.0,0.0690684]
[1773614426938,0.0691543,72414.0,72403.0,0.0014]
[1773614427140,5e-05,72420.0,72404.0,0.0014]
[1773614427358,5e-05,72420.0,72405.0,0.0014]
[1773614427677,5e-05,72420.0,72404.0,0.00010635]
[1773614427916,5e-05,72420.0,72395.0,5e-05]
[1773614428062,0.10667651,72417.0,72390.0,5e-05]
[1773614428274,0.10667651,72415.0,72390.0,5e-05]
[1773614428485,0.10667651,72415.0,72390.0,0.06911967]
[1773614428664,0.00155617,72420.0,72392.0,0.10594294]
[1773614428862,0.00015617,72420.0,72392.0,0.10594294]
[1773614429059,0.00155617,72420.0,72392.0,0.10594294]
[1773614429261,0.06904265,72419.0,72392.0,0.17501048]
[1773614429469,0.07044265,72419.0,72391.0,0.15981584]
[1773614429665,0.10667651,72417.0,72392.0,0.0014]
[1773614429972,0.11719973,72418.0,72391.0,0.22888424]
[1773614429973,0.07044265,72419.0,72393.0,0.0014]
[1773614430388,0.07044265,72419.0,72391.0,0.2288847]
[1773614430591,0.18764238,72419.0,72391.0,0.2288847]
[1773614430793,0.18764238,72419.0,72392.0,0.0014]
[1773614430794,0.10667651,72418.0,72392.0,0.0014]
[1773614431037,0.0014,72417.0,72392.0,0.0014]
[1773614431238,0.10667651,72418.0,72392.0,0.0014]
[1773614431418,0.06904646,72415.0,72393.0,0.06906745]
[1773614432834,0.0114,72439.0,72393.0,0.06906745]
[1773614433055,0.06903598,72426.0,72401.0,0.10594294]
[1773614433206,0.06903598,72426.0,72403.0,0.10594294]
[1773614433418,0.0690293,72433.0,72404.0,0.06905695]
[1773614433665,0.0690293,72433.0,72410.0,0.17222538]
[1773614433866,1e-08,72439.0,72422.0,0.10594294]
[1773614434066,0.06902411,72439.0,72405.0,0.10594294]
[1773614434332,0.0004938,72452.0,72430.0,0.15981584]
[1773614434452,0.07454274,72450.0,72431.0,0.10734294]
[1773614434656,0.07454274,72450.0,72430.0,0.15981584]
[1773614434853,0.099381,72451.0,72430.0,0.15981584]
[1773614435227,0.06901112,72453.0,72431.0,0.0014]
[1773614435385,0.10667651,72452.0,72430.0,0.0014]
[1773614435554,0.10667651,72452.0,72431.0,0.0014]
[1773614435555,0.06901215,72451.0,72431.0,0.0014]
[1773614436013,0.00010621,72453.0,72432.0,0.10594294]
[1773614436152,0.10667651,72471.0,72440.0,0.17222538]
[1773614436353,0.17567724,72463.0,72440.0,0.00010621]
[1773614436559,0.0014,72462.0,72441.0,0.0014]
[1773614437011,5e-05,72464.0,72441.0,0.0014]
[1773614437211,5e-05,72464.0,72440.0,0.17233159]
[1773614437212,0.10667651,72462.0,72440.0,0.00010621]
[1773614437445,0.10667651,72460.0,72440.0,0.00010621]
[1773614437643,0.06900454,72459.0,72440.0,0.00010621]
[1773614437805,0.0014,72458.0,72440.0,0.00010621]
[1773614438015,0.0014,72458.0,72430.0,5e-05]
[1773614438016,0.10667651,72457.0,72430.0,5e-05]
[1773614438216,0.10667651,72457.0,72432.0,0.10594294]
[1773614438217,0.00150615,72457.0,72432.0,0.10594294]
[1773614438444,0.00010615,72457.0,72435.0,5e-05]
[1773614438612,0.0014,72469.0,72440.0,0.17222538]
[1773614438781,0.0689893,72475.0,72442.0,0.10594294]
[1773614439342,0.0014,72479.0,72440.0,0.17233153]
[1773614439547,0.06898645,72478.0,72445.0,0.06901787]
[1773614439762,0.681452,72476.0,72434.0,0.0692783]
[1773614439970,0.282756,72468.0,72434.0,0.00025]
[1773614440170,0.10667651,72464.0,72434.0,0.00025]
[1773614440371,0.24725,72461.0,72434.0,0.06927834]
[1773614440664,0.00136,72460.0,72442.0,0.001]
[1773614440839,0.00136,72460.0,72434.0,0.06927834]
[1773614441214,0.10667651,72459.0,72434.0,0.00025]
[1773614441414,0.10667651,72459.0,72434.0,0.06927831]
[1773614441666,0.10667651,72459.0,72430.0,0.00645718]
[1773614441667,0.10667651,72456.0,72430.0,0.00645718]
[1773614442112,0.10667651,72453.0,72430.0,0.00645718]
[1773614442309,0.06900549,72458.0,72425.0,5e-05]
[1773614442310,0.10667651,72450.0,72425.0,5e-05]
[1773614442508,0.15962898,72449.0,72425.0,5e-05]
[1773614442952,0.10667651,72448.0,72425.0,5e-05]
[1773614443163,0.10667651,72448.0,72422.0,0.06903894]
[1773614443164,0.15962898,72449.0,72422.0,0.06903912]
[1773614443368,0.00150611,72448.0,72422.0,0.06903912]
[1773614443692,0.00150611,72448.0,72421.0,0.22885563]
[1773614443693,0.06901692,72446.0,72421.0,0.06903979]
[1773614443869,0.06901692,72446.0,72420.0,5e-05]
[1773614444232,0.10667651,72445.0,72420.0,5e-05]
[1773614444459,1.116963,72444.0,72415.0,5e-05]
[1773614444624,0.0014,72443.0,72415.0,5e-05]
[1773614444855,0.10667651,72442.0,72415.0,5e-05]
[1773614445071,0.0014,72443.0,72410.0,5e-05]
[1773614445072,0.10667651,72439.0,72410.0,5e-05]
[1773614445511,0.0014,72438.0,72410.0,5e-05]
[1773614445710,0.07042549,72437.0,72405.0,0.069106]
[1773614446113,0.60960528,72436.0,72405.0,5e-05]
[1773614446334,0.60960528,72436.0,72404.0,0.0698515]
[1773614446335,0.455446,72432.0,72404.0,0.06985183]
[1773614446550,0.60960528,72436.0,72406.0,0.10594294]
[1773614446776,0.0014,72435.0,72406.0,0.10594294]
[1773614446985,0.0014,72435.0,72404.0,0.06985183]
[1773614447218,0.10807651,72435.0,72404.0,0.06985183]
[1773614447881,0.06902835,72434.0,72404.0,0.06985183]
[1773614448098,0.07042835,72434.0,72404.0,0.06985183]
[1773614448324,0.0014,72433.0,72404.0,0.06985183]
[1773614448535,0.0014,72433.0,72404.0,0.17579477]
[1773614448724,0.0014,72433.0,72404.0,0.06985183]
[1773614448725,0.10667651,72431.0,72404.0,0.06985183]
[1773614448970,0.10667651,72431.0,72404.0,0.0007955]
[1773614449191,0.17143352,72430.0,72404.0,0.0007955]
[1773614449415,0.10667651,72429.0,72404.0,0.0007955]
[1773614449901,0.10667651,72429.0,72404.0,0.06985158]
[1773614450150,0.0014,72428.0,72405.0,0.10594294]
[1773614450368,0.0014,72428.0,72405.0,0.2414188]
[1773614450578,0.06903378,72429.0,72409.0,0.10919828]
[1773614450790,0.0014,72427.0,72410.0,0.13547586]
[1773614450994,0.0014,72427.0,72405.0,0.10594294]
[1773614450995,0.0014,72427.0,72411.0,0.13547586]
[1773614451128,0.0014,72427.0,72412.0,0.13547586]
[1773614451326,0.0014,72427.0,72413.0,0.13547586]
[1773614451527,0.0014,72427.0,72404.0,0.0007955]
[1773614451746,0.0014,72427.0,72405.0,5e-05]
[1773614452067,0.67864126,72426.0,72405.0,5e-05]
[1773614452273,0.0014,72425.0,72406.0,0.12071176]
[1773614452496,0.0014,72425.0,72404.0,0.02931674]
[1773614453154,0.60960528,72426.0,72405.0,0.11672241]
[1773614453362,0.06903063,72432.0,72408.0,0.11672241]
[1773614453566,0.0014,72431.0,72409.0,0.11672241]
[1773614453772,0.06903063,72432.0,72409.0,0.11672241]
[1773614453980,0.06903216,72430.0,72409.0,0.06905218]
[1773614455659,0.0014,72429.0,72409.0,0.06905218]
[1773614456288,0.06903407,72428.0,72409.0,0.06905218]
[1773614456875,0.0014,72427.0,72409.0,0.06905218]
[1773614457486,0.0014,72426.0,72409.0,0.06905218]
[1773614457711,0.06903026,72435.0,72409.0,0.06905218]
[1773614457871,0.06902953,72433.0,72410.0,0.11672241]
[1773614458239,0.06902953,72433.0,72411.0,0.06905028]
[1773614458857,0.11871762,72432.0,72411.0,0.06905028]
[1773614459570,0.11871762,72432.0,72406.0,0.06905505]
[1773614459794,0.06902953,72433.0,72406.0,0.06905505]
[1773614459795,0.11871762,72430.0,72406.0,0.06905505]
[1773614460369,0.0014,72429.0,72406.0,0.11672241]
[1773614460719,0.18224,72453.0,72410.0,0.17143352]
[1773614460894,0.06921258,72451.0,72420.0,0.17143352]
[1773614461092,0.16873751,72446.0,72421.0,0.0014]
[1773614461299,0.06921258,72451.0,72414.0,0.28073982]
[1773614461300,0.0014,72445.0,72423.0,0.11672241]
[1773614461494,0.0014,72445.0,72424.0,0.0014]
[1773614461880,0.06921258,72451.0,72424.0,0.0014]
[1773614461881,0.16873751,72448.0,72424.0,0.0014]
[1773614462080,0.0014,72444.0,72415.0,0.11677241]
[1773614462302,0.11871762,72441.0,72417.0,0.06904456]
[1773614463420,0.11871762,72441.0,72417.0,0.23306197]
[1773614463627,0.11871762,72441.0,72418.0,0.13594665]
[1773614463918,0.11871762,72441.0,72419.0,0.13594665]
[1773614464122,0.11871762,72441.0,72420.0,0.13594665]
[1773614464339,0.11871762,72439.0,72413.0,0.06904837]
[1773614464691,0.11871762,72439.0,72410.0,0.06910118]
[1773614464893,0.11871762,72429.0,72395.0,5e-05]
[1773614465131,0.11871762,72429.0,72386.0,0.20167466]
[1773614465132,0.16873751,72409.0,72380.0,0.06907922]
[1773614465302,0.10759,72406.0,72376.0,0.06913289]
[1773614465514,0.11871762,72405.0,72376.0,0.06913289]
[1773614466133,0.11871762,72406.0,72376.0,0.06913289]
[1773614466343,0.06905791,72403.0,72376.0,0.06913289]
[1773614466670,0.12011762,72402.0,72376.0,0.06913289]
[1773614467093,0.0014,72401.0,72376.0,0.06913289]
[1773614467273,0.0014,72400.0,72376.0,0.07053289]
[1773614467422,0.06905791,72403.0,72376.0,0.07053289]
[1773614467628,0.0014,72402.0,72376.0,0.07053289]
[1773614467955,0.0014,72401.0,72376.0,0.07053289]
[1773614468520,0.06906077,72400.0,72376.0,0.07075289]
[1773614468746,0.06906002,72401.0,72376.0,0.07075289]
[1773614469087,0.0014,72400.0,72376.0,0.07075289]
[1773614470054,0.0014,72399.0,72376.0,0.07075289]
[1773614470878,0.0014,72398.0,72377.0,0.11672241]
[1773614471337,0.0014,72398.0,72376.0,0.07075289]
[1773614471540,0.0014,72397.0,72376.0,0.07075289]
[1773614472092,0.18777553,72403.0,72376.0,0.07075289]
[1773614472325,0.0014,72402.0,72377.0,0.11672241]
[1773614473071,0.06905981,72401.0,72378.0,0.06908176]
[1773614473811,0.0014,72400.0,72378.0,0.06908176]
[1773614474756,0.11871762,72425.0,72379.0,0.11672241]
[1773614474977,0.11871762,72425.0,72378.0,0.06908176]
[1773614474978,0.0014,72422.0,72392.0,0.11672241]
[1773614475184,0.07044074,72421.0,72394.0,0.11672241]
[1773614476419,0.07044074,72421.0,72395.0,0.13579145]
[1773614476619,0.11871762,72430.0,72393.0,0.07046745]
[1773614476620,0.06903641,72426.0,72396.0,0.13579145]
[1773614476825,0.0014,72425.0,72398.0,0.11672241]
[1773614477018,0.06903788,72424.0,72401.0,0.06905981]
[1773614478443,0.06923096,72432.0,72401.0,0.06905981]
[1773614478444,1e-08,72432.0,72402.0,0.13575698]
[1773614478751,0.06905642,72458.0,72420.0,0.17143352]
[1773614478986,0.0014,72457.0,72423.0,0.06903884]
[1773614479191,0.0002,72449.0,72425.0,0.11672241]
[1773614479504,5e-05,72458.0,72431.0,0.11672241]
[1773614479706,5e-05,72458.0,72433.0,0.11672241]
[1773614479905,5e-05,72458.0,72432.0,0.13715698]
[1773614479906,0.0691622,72458.0,72435.0,0.11672241]
[1773614480149,0.00015625,72458.0,72436.0,0.13575698]
[1773614480451,0.00015625,72458.0,72438.0,0.11672241]
[1773614480699,0.06900644,72457.0,72439.0,0.11812241]
[1773614480933,0.00015625,72458.0,72440.0,0.0014]
[1773614481144,0.00015625,72458.0,72441.0,0.06902168]
[1773614481772,0.00015625,72458.0,72433.0,0.0014]
[1773614481981,0.00015625,72458.0,72434.0,0.11812241]
[1773614482191,0.0014,72457.0,72435.0,0.13098027]
[1773614482412,0.0014,72457.0,72436.0,0.0014]
[1773614483055,0.0014,72457.0,72435.0,0.0014]
[1773614483278,0.06900739,72456.0,72435.0,0.06902645]
[1773614483506,0.12664451,72455.0,72424.0,0.06903788]
[1773614484179,0.12664451,72455.0,72423.0,0.06903788]
[1773614484602,0.12664451,72453.0,72423.0,0.06903788]
[1773614484839,0.06900739,72456.0,72424.0,0.29630858]
[1773614485050,0.0014,72452.0,72424.0,0.29630858]
[1773614485263,0.06900739,72456.0,72426.0,0.12958027]
[1773614485471,0.06900724,72457.0,72426.0,0.12958027]
[1773614485680,0.0014,72455.0,72426.0,0.12958027]
[1773614485891,0.0014,72454.0,72426.0,0.12958027]
[1773614486333,0.06916227,72458.0,72426.0,0.12958027]
[1773614486583,0.00015625,72458.0,72426.0,0.12958027]
[1773614486801,0.06916231,72458.0,72425.0,0.06903693]
[1773614487016,0.12804451,72457.0,72425.0,0.06903693]
[1773614487240,0.06916231,72458.0,72425.0,0.06903693]
[1773614487241,0.00035625,72458.0,72428.0,0.12958027]
[1773614487458,0.0014,72457.0,72431.0,0.12958027]
[1773614488611,0.0014,72457.0,72432.0,0.0014]
[1773614489231,0.06900739,72456.0,72433.0,0.0690293]
[1773614490252,0.12664451,72455.0,72433.0,0.0690293]
[1773614490480,0.12664451,72455.0,72428.0,0.0690337]
[1773614490680,0.0014,72454.0,72430.0,0.06903121]
[1773614490901,0.12664451,72453.0,72430.0,0.06903121]
[1773614491101,0.0014,72452.0,72430.0,0.06903121]
[1773614491317,0.06901215,72451.0,72430.0,0.06903121]
[1773614491532,0.06901215,72451.0,72429.0,0.06903312]
[1773614491696,0.19565666,72451.0,72429.0,0.06903312]
[1773614492028,0.0014,72450.0,72429.0,0.06903312]
[1773614492597,0.0014,72449.0,72429.0,0.06903312]
[1773614492928,0.12664451,72447.0,72428.0,0.0690337]
[1773614493292,0.19566143,72446.0,72423.0,0.06903884]
[1773614493488,0.12664451,72445.0,72423.0,0.06903884]
[1773614494505,0.12664451,72445.0,72423.0,0.01903884]
[1773614495071,0.0014,72444.0,72423.0,0.01903884]
[1773614495480,0.0014,72443.0,72423.0,0.01903884]
[1773614495799,0.0014,72443.0,72420.0,0.04183249]
[1773614496113,0.0014,72443.0,72423.0,0.06903884]
[1773614496363,0.0014,72443.0,72415.0,0.0014]
[1773614496364,0.12664451,72442.0,72415.0,0.0014]
[1773614496626,0.0014,72443.0,72412.0,0.06904932]
[1773614496627,0.12664451,72439.0,72412.0,0.06904932]
[1773614496811,0.12664451,72439.0,72402.0,0.0690586]
[1773614496812,0.384807,72428.0,72403.0,0.07250734]
[1773614497085,0.12664451,72426.0,72403.0,0.07250738]
[1773614497465,0.06903693,72425.0,72403.0,0.07250738]
[1773614497669,0.12664451,72424.0,72403.0,0.07250738]
[1773614497882,0.12664451,72424.0,72402.0,0.06905791]
[1773614498083,0.12664451,72424.0,72403.0,0.06905745]
[1773614498456,0.06903693,72425.0,72403.0,0.06905745]
[1773614498655,0.0014,72424.0,72403.0,0.06905745]
[1773614498895,0.06903693,72425.0,72403.0,0.06905745]
[1773614498896,0.0014,72423.0,72403.0,0.06905745]
[1773614499117,0.17143352,72420.0,72395.0,5e-05]
[1773614499309,0.12664451,72418.0,72395.0,0.06946952]
[1773614499470,0.43655056,72417.0,72395.0,0.06946963]
[1773614499670,0.12799,72415.0,72394.0,0.00022]
[1773614499878,0.12799,72415.0,72395.0,0.06906554]
[1773614500097,0.17143352,72410.0,72386.0,0.06929338]
[1773614500280,0.12804451,72409.0,72386.0,0.06964875]
[1773614500714,0.12804451,72409.0,72386.0,0.00057537]
[1773614500915,0.29842373,72400.0,72372.0,0.06908706]
[1773614501115,0.06904456,72417.0,72377.0,0.06908271]
[1773614501116,0.470976,72415.0,72377.0,0.06908271]
[1773614501292,0.17177922,72400.0,72380.0,5e-05]
[1773614501497,0.06907126,72389.0,72370.0,0.06913925]
[1773614501726,0.0014,72388.0,72370.0,0.00040547]
[1773614501890,0.0014,72388.0,72368.0,0.06931048]
[1773614502094,0.0014,72388.0,72368.0,0.00057579]
[1773614502367,0.20605,72385.0,72364.0,0.06909463]
[1773614502600,0.17900507,72385.0,72364.0,0.06909463]
[1773614502810,0.450809,72383.0,72364.0,0.06909463]
[1773614503014,0.0014,72382.0,72364.0,0.06909463]
[1773614503821,0.0690789,72381.0,72355.0,0.19873303]
[1773614504108,0.0014,72380.0,72355.0,0.19873303]
[1773614504354,0.0014,72379.0,72355.0,0.19868303]
[1773614504886,0.0014,72379.0,72370.0,0.00022]
[1773614505498,0.0014,72378.0,72370.0,0.00022]
[1773614506006,0.06908271,72377.0,72370.0,0.00022]
[1773614506435,5e-05,72399.0,72371.0,0.06908844]
[1773614506643,0.0014,72389.0,72372.0,0.12958027]
[1773614506851,0.001,72378.0,72372.0,0.00035507]
[1773614507067,0.06906423,72397.0,72373.0,0.12958027]
[1773614507276,0.0014,72396.0,72373.0,0.12958027]
[1773614507929,0.12804451,72396.0,72372.0,0.00035507]
[1773614508144,0.12664451,72389.0,72365.0,0.06914365]
[1773614508366,0.12699958,72389.0,72362.0,0.06931693]
[1773614508611,0.001,72377.0,72362.0,0.06931693]
[1773614508816,0.0014,72376.0,72362.0,0.06931693]
[1773614509043,0.0014,72375.0,72362.0,0.06931693]
[1773614509355,0.0014,72374.0,72362.0,0.06931693]
[1773614509669,0.0014,72379.0,72362.0,0.1988972]
[1773614509883,0.0014,72378.0,72362.0,0.06931693]
[1773614510094,0.0014,72377.0,72362.0,0.06931693]
[1773614510318,0.0014,72376.0,72362.0,0.06931693]
[1773614510530,0.0014,72375.0,72362.0,0.06931693]
[1773614510739,0.0014,72375.0,72362.0,0.00022]
[1773614511607,0.0014,72375.0,72358.0,0.06910014]
[1773614511829,0.0014,72374.0,72358.0,0.06910014]
[1773614512041,0.0014,72373.0,72358.0,0.06910014]
[1773614512256,0.0014,72372.0,72357.0,0.06910085]
[1773614512485,0.0014,72371.0,72357.0,0.06910085]
[1773614512708,0.06907699,72383.0,72357.0,0.06910085]
[1773614512709,0.0014,72375.0,72357.0,0.06910085]
[1773614512923,0.0014,72374.0,72357.0,0.06910085]
[1773614513156,0.0014,72373.0,72357.0,0.06910085]
[1773614514711,0.06908749,72372.0,72355.0,0.06932349]
[1773614514924,0.0014,72383.0,72356.0,0.1452014]
[1773614515140,1.00357278,72382.0,72355.0,0.06932349]
[1773614515389,0.0014,72383.0,72357.0,0.1454214]
[1773614515609,0.0002,72374.0,72357.0,0.00022]
[1773614515863,0.0014,72373.0,72357.0,0.00022]
[1773614516540,0.06907395,72387.0,72357.0,0.00022]
[1773614516541,0.00035507,72389.0,72359.0,0.0690999]
[1773614516758,0.10958683,72411.0,72359.0,0.0690999]
[1773614516759,0.0001,72411.0,72371.0,0.1452014]
[1773614516973,0.06905916,72402.0,72373.0,0.1452014]
[1773614517209,0.0690588,72403.0,72373.0,0.1452014]
[1773614517420,0.0014,72404.0,72373.0,0.1452014]
[1773614517638,5e-05,72420.0,72380.0,0.17177922]
[1773614517853,0.0014,72418.0,72381.0,0.1452014]
[1773614518057,0.0014,72418.0,72383.0,0.1452014]
[1773614518489,0.06909217,72420.0,72383.0,0.1452014]
[1773614518701,0.0014,72417.0,72385.0,0.1452014]
[1773614518911,0.04316669,72416.0,72385.0,0.1452014]
[1773614519122,0.04316669,72416.0,72384.0,0.06907603]
[1773614519320,0.50247,72415.0,72384.0,0.06907603]
[1773614519531,0.04316669,72416.0,72383.0,0.07047603]
[1773614519532,0.13347678,72412.0,72383.0,0.001]
[1773614519683,0.472778,72409.0,72383.0,0.001]
[1773614519881,0.04316669,72416.0,72382.0,0.06907603]
[1773614520104,0.04316669,72416.0,72383.0,0.1466014]
[1773614520424,0.00136,72415.0,72383.0,0.1466014]
[1773614520583,5e-05,72420.0,72385.0,0.1452014]
[1773614520584,0.06904265,72419.0,72385.0,0.1452014]
[1773614520803,0.00136,72418.0,72385.0,0.1452014]
[1773614521007,0.00136,72418.0,72391.0,0.16793603]
[1773614521206,0.00136,72418.0,72392.0,0.1452014]
[1773614521413,0.06903476,72428.0,72392.0,0.1452014]
[1773614521414,0.0002,72445.0,72400.0,0.17177922]
[1773614521623,1e-08,72434.0,72410.0,0.1452014]
[1773614521967,1e-08,72434.0,72412.0,0.1452014]
[1773614522447,0.06902909,72434.0,72412.0,0.1452014]
[1773614522585,1e-08,72434.0,72413.0,0.06904837]
[1773614522780,1e-08,72434.0,72414.0,0.1452014]
[1773614524026,1e-08,72434.0,72415.0,0.0014]
[1773614524278,1e-08,72434.0,72416.0,0.1452014]
[1773614524854,0.0002,72426.0,72417.0,0.06904456]
[1773614525498,0.0002,72426.0,72418.0,0.0014]
[1773614526009,0.13347678,72457.0,72418.0,0.0014]
[1773614526010,0.06901882,72444.0,72419.0,0.1452014]
[1773614526211,0.0014,72443.0,72419.0,0.1452014]
[1773614526435,0.0014,72443.0,72420.0,0.0014]
[1773614527490,0.0014,72443.0,72421.0,0.06904074]
[1773614527692,0.06921851,72445.0,72421.0,0.06904074]
[1773614527904,0.0002,72445.0,72422.0,0.1452014]
[1773614528294,0.0002,72445.0,72423.0,0.0014]
[1773614528501,0.06901882,72444.0,72424.0,0.0014]
[1773614528890,0.0002,72445.0,72424.0,0.0014]
[1773614529677,0.0692184,72445.0,72425.0,0.06903693]
[1773614530126,0.0002,72445.0,72425.0,0.06903693]
[1773614530333,0.06921818,72445.0,72425.0,0.06903693]
[1773614531240,0.13347678,72444.0,72425.0,0.06903693]
[1773614531436,0.06921818,72445.0,72425.0,0.06903693]
[1773614531437,0.0002,72445.0,72425.0,0.06903693]
[1773614531655,0.07061829,72445.0,72425.0,0.06903693]
[1773614532581,0.13347678,72444.0,72424.0,0.06903788]
[1773614533109,0.13347678,72444.0,72423.0,0.07043799]
[1773614533380,0.13347678,72444.0,72413.0,0.07044837]
[1773614533686,0.13347678,72444.0,72414.0,0.0014]
[1773614534007,0.13347678,72442.0,72417.0,0.06904456]
[1773614534413,0.17177922,72430.0,72400.0,0.004]
[1773614534614,0.05788602,72419.0,72400.0,0.07306046]
[1773614534886,0.0014,72418.0,72400.0,0.07306046]
[1773614535350,0.0014,72418.0,72400.0,0.07306017]
[1773614535944,0.06904456,72417.0,72400.0,0.07306017]
[1773614536480,1.379961,72416.0,72395.0,5e-05]
[1773614536683,0.16596,72414.0,72390.0,0.06912004]
[1773614536956,0.28269,72415.0,72390.0,0.06912004]
[1773614537157,0.21409,72415.0,72390.0,0.06912004]
[1773614537375,0.21409,72414.0,72390.0,0.06912004]
[1773614537510,0.0014,72413.0,72390.0,0.06912004]
[1773614537712,0.0014,72413.0,72390.0,0.06907004]
[1773614538368,0.06904932,72412.0,72388.0,0.06907138]
[1773614540939,0.842109,72399.0,72380.0,5e-05]
[1773614541136,0.17177922,72400.0,72380.0,5e-05]
[1773614541137,0.319943,72397.0,72380.0,5e-05]
[1773614541688,0.319943,72397.0,72377.0,0.06908266]
[1773614541925,0.0014,72398.0,72377.0,0.06908266]
[1773614542248,0.72746244,72397.0,72377.0,0.00035507]
[1773614542544,0.72746244,72397.0,72377.0,0.06933758]
[1773614542545,0.15287944,72397.0,72377.0,0.06933758]
[1773614542747,0.09578092,72395.0,72371.0,0.06198844]
[1773614542946,0.09578092,72395.0,72365.0,5e-05]
[1773614542947,0.31570912,72395.0,72370.0,0.06913844]
[1773614543150,0.2072,72394.0,72380.0,0.00022]
[1773614543312,0.109,72393.0,72380.0,0.00022]
[1773614545527,0.0690684,72392.0,72380.0,0.00022]
[1773614545728,0.0704684,72392.0,72380.0,0.00022]
[1773614546245,0.0014,72391.0,72380.0,0.06929965]
[1773614546642,0.0690684,72392.0,72380.0,0.06929965]
[1773614547836,0.0704684,72393.0,72380.0,0.06929965]
[1773614548037,0.00035512,72395.0,72381.0,0.142793]
[1773614548311,0.07046268,72398.0,72381.0,0.142793]
[1773614548515,0.0014,72398.0,72381.0,0.14314812]
[1773614548815,0.06905409,72409.0,72383.0,0.142793]
[1773614549608,0.0012,72412.0,72385.0,0.142793]
[1773614549820,0.07024969,72412.0,72385.0,0.142793]
[1773614550214,0.0012,72412.0,72386.0,0.0014]
[1773614550376,0.06904932,72414.0,72387.0,0.142793]
[1773614551780,0.0002,72412.0,72388.0,0.06907222]
[1773614553126,5e-05,72438.0,72401.0,0.17028127]
[1773614553344,0.06902278,72440.0,72411.0,0.142793]
[1773614553571,0.06901602,72447.0,72412.0,0.0014]
[1773614553805,0.06901318,72450.0,72415.0,0.142793]
[1773614553806,0.06901741,72446.0,72415.0,0.142793]
[1773614554028,0.06900796,72456.0,72421.0,0.142793]
[1773614554244,0.06900796,72456.0,72422.0,0.0014]
[1773614554457,0.07040796,72456.0,72423.0,0.142793]
[1773614554659,0.0014,72456.0,72423.0,0.142793]
[1773614555317,0.06900549,72461.0,72422.0,0.00150346]
[1773614555318,1e-08,72464.0,72431.0,0.142793]
[1773614555570,1e-08,72464.0,72432.0,0.06903026]
[1773614555715,1e-08,72464.0,72433.0,0.144193]
[1773614557149,1e-08,72464.0,72433.0,0.145193]
[1773614557354,1e-08,72464.0,72433.0,0.002]
[1773614557675,0.06900073,72463.0,72434.0,0.21322135]
[1773614558052,0.06900073,72463.0,72434.0,0.21182135]
[1773614558258,0.0014,72462.0,72435.0,0.0014]
[1773614558655,0.0014,72462.0,72436.0,0.142793]
[1773614558864,0.0014,72462.0,72427.0,0.06903453]
[1773614558865,1.17442844,72458.0,72427.0,0.06903453]
[1773614559036,0.909497,72457.0,72430.0,5e-05]
[1773614559233,0.843387,72456.0,72430.0,5e-05]
[1773614559458,0.0014,72462.0,72430.0,5e-05]
[1773614559459,0.2744,72462.0,72430.0,5e-05]
[1773614559659,0.06900454,72459.0,72430.0,0.06903216]
[1773614559959,0.06900121,72463.0,72431.0,0.142793]
[1773614560155,0.0014,72462.0,72431.0,0.142793]
[1773614560402,0.06899991,72464.0,72431.0,0.142793]
[1773614560578,0.0014,72463.0,72431.0,0.142793]
[1773614560798,0.0002,72462.0,72431.0,0.142793]
[1773614561825,0.07060215,72462.0,72433.0,0.142793]
[1773614562002,0.07060215,72462.0,72432.0,0.06903026]
[1773614562201,0.07060215,72462.0,72430.0,0.06903216]
[1773614562202,1.13192,72457.0,72426.0,0.06903598]
[1773614562524,0.15287944,72454.0,72426.0,0.06903598]
[1773614562722,0.17140025,72450.0,72425.0,5e-05]